[Event "*** Titled Tuesday Blitz"]
[Site "Chess.com"]
[Date "2018.07.03"]
[Round "10"]
[White "Gvalch"]
[Black "kungmongmanh"]
[Result "1-0"]
[WhiteElo "2607"]
[BlackElo "2492"]
[TimeControl "180+2"]
[EndTime "15:15:52 PDT"]
[Termination "Gvalch won on time"]

1. d4 {[%clk 0:03:01]} 1... Nf6 {[%clk 0:03:00.4]} 2. c4 {[%clk 0:03:00.9]} 2...
e6 {[%clk 0:03:01.5]} 3. g3 {[%clk 0:03:01.4]} 3... Bb4+ {[%clk 0:03:02.2]} 4.
Nd2 {[%clk 0:03:01.5]} 4... O-O {[%clk 0:03:02]} 5. Bg2 {[%clk 0:03:02]} 5... d5
{[%clk 0:02:57.9]} 6. Nf3 {[%clk 0:03:03.3]} 6... dxc4 {[%clk 0:02:58.1]} 7. Qc2
{[%clk 0:03:04.7]} 7... Nc6 {[%clk 0:02:55.1]} 8. Qxc4 {[%clk 0:03:04.2]} 8...
Be7 {[%clk 0:02:52.4]} 9. O-O {[%clk 0:03:04.5]} 9... Bd7 {[%clk 0:02:52]} 10.
e4 {[%clk 0:02:56.1]} 10... a6 {[%clk 0:02:37]} 11. Qe2 {[%clk 0:02:54.7]} 11...
Nb4 {[%clk 0:02:33.1]} 12. Nc4 {[%clk 0:02:49.2]} 12... Bb5 {[%clk 0:02:33.3]}
13. a3 {[%clk 0:02:47.3]} 13... Nc6 {[%clk 0:02:33.9]} 14. Rd1 {[%clk
0:02:22.5]} 14... Nxe4 {[%clk 0:02:31.4]} 15. a4 {[%clk 0:02:20.1]} 15... Bxc4
{[%clk 0:02:31.3]} 16. Qxc4 {[%clk 0:02:22]} 16... Nd6 {[%clk 0:02:32.6]} 17.
Qe2 {[%clk 0:02:21.7]} 17... Nb4 {[%clk 0:02:28.8]} 18. Ne5 {[%clk 0:02:00.8]}
18... Nd5 {[%clk 0:02:26.9]} 19. Bd2 {[%clk 0:01:54.8]} 19... c6 {[%clk
0:02:23.3]} 20. Rac1 {[%clk 0:01:54.7]} 20... Nf5 {[%clk 0:02:20]} 21. Be1
{[%clk 0:01:54.1]} 21... Nd6 {[%clk 0:01:52.7]} 22. b4 {[%clk 0:01:53]} 22...
Nf5 {[%clk 0:01:48.7]} 23. Qb2 {[%clk 0:01:43.4]} 23... Nd6 {[%clk 0:01:32.6]}
24. Rc2 {[%clk 0:01:16.9]} 24... Bf6 {[%clk 0:01:29.4]} 25. Rdc1 {[%clk
0:01:15.4]} 25... Re8 {[%clk 0:01:29.9]} 26. Qa2 {[%clk 0:01:07.3]} 26... Nf5
{[%clk 0:01:27.2]} 27. Qb2 {[%clk 0:01:04.2]} 27... Qd6 {[%clk 0:01:10.1]} 28.
Re2 {[%clk 0:00:37.7]} 28... Red8 {[%clk 0:01:03.2]} 29. Nf3 {[%clk 0:00:38.4]}
29... Qb8 {[%clk 0:00:54]} 30. b5 {[%clk 0:00:21.8]} 30... axb5 {[%clk
0:00:53.3]} 31. axb5 {[%clk 0:00:23.7]} 31... cxb5 {[%clk 0:00:52.5]} 32. Qxb5
{[%clk 0:00:23.3]} 32... Bxd4 {[%clk 0:00:31.2]} 33. g4 {[%clk 0:00:23.5]} 33...
Nd6 {[%clk 0:00:32.3]} 34. Qd3 {[%clk 0:00:15.7]} 34... Bf6 {[%clk 0:00:24.4]}
35. Bd2 {[%clk 0:00:11.3]} 35... h6 {[%clk 0:00:22.9]} 36. h4 {[%clk 0:00:11.9]}
36... b5 {[%clk 0:00:20.1]} 37. g5 {[%clk 0:00:12.9]} 37... hxg5 {[%clk
0:00:20.8]} 38. hxg5 {[%clk 0:00:14.8]} 38... Be7 {[%clk 0:00:21.7]} 39. g6
{[%clk 0:00:16.2]} 39... Nc4 {[%clk 0:00:15.4]} 40. gxf7+ {[%clk 0:00:17.2]}
40... Kxf7 {[%clk 0:00:16.6]} 41. Ng5+ {[%clk 0:00:14.2]} 41... Bxg5 {[%clk
0:00:15.3]} 42. Bxg5 {[%clk 0:00:16.1]} 42... Nf6 {[%clk 0:00:14.7]} 43. Qf3
{[%clk 0:00:16.6]} 43... Ra6 {[%clk 0:00:14.2]} 44. Rce1 {[%clk 0:00:17.8]}
44... Re8 {[%clk 0:00:12.8]} 45. Bh3 {[%clk 0:00:19.2]} 45... Qd6 {[%clk
0:00:10.7]} 46. Kh1 {[%clk 0:00:17.4]} 46... e5 {[%clk 0:00:08.8]} 47. Qb7+
{[%clk 0:00:12.8]} 47... Re7 {[%clk 0:00:09.2]} 48. Qxb5 {[%clk 0:00:13.9]}
48... Rc6 {[%clk 0:00:08.1]} 49. Bg2 {[%clk 0:00:13.9]} 49... Rc5 {[%clk
0:00:07.8]} 50. Qb3 {[%clk 0:00:13.8]} 50... Kg6 {[%clk 0:00:05.9]} 51. Qg3
{[%clk 0:00:14]} 51... Kf7 {[%clk 0:00:07.1]} 52. Kg1 {[%clk 0:00:14.6]} 52...
Qd4 {[%clk 0:00:07.1]} 53. Bxf6 {[%clk 0:00:09.7]} 53... gxf6 {[%clk 0:00:07.9]}
54. Re4 {[%clk 0:00:11.1]} 54... Qd2 {[%clk 0:00:07.3]} 55. R4e2 {[%clk
0:00:09.1]} 55... Qh6 {[%clk 0:00:07.2]} 56. Qb3 {[%clk 0:00:09.2]} 56... Qg5
{[%clk 0:00:06.3]} 57. Rc2 {[%clk 0:00:09.9]} 57... Qg4 {[%clk 0:00:04.4]} 58.
Rc3 {[%clk 0:00:06.2]} 58... Qd4 {[%clk 0:00:04.7]} 59. Rd3 {[%clk 0:00:07.1]}
59... Qg4 {[%clk 0:00:04.3]} 60. Rg3 {[%clk 0:00:08.2]} 60... Qf4 {[%clk
0:00:04.6]} 61. Rd1 {[%clk 0:00:09.6]} 61... Rec7 {[%clk 0:00:05.6]} 62. Bd5+
{[%clk 0:00:10.5]} 62... Rxd5 {[%clk 0:00:04]} 63. Rxd5 {[%clk 0:00:11.1]} 63...
Qc1+ {[%clk 0:00:05.2]} 64. Rd1 {[%clk 0:00:11.4]} 64... Qf4 {[%clk 0:00:05.8]}
65. Qd3 {[%clk 0:00:12]} 65... Ke6 {[%clk 0:00:03.8]} 66. Qd5+ {[%clk
0:00:12.8]} 66... Kf5 {[%clk 0:00:05.1]} 67. Rf3 {[%clk 0:00:13.1]} 67... Rg7+
{[%clk 0:00:05.8]} 68. Kf1 {[%clk 0:00:14.1]} 68... Rg4 {[%clk 0:00:03.8]} 69.
Rxf4+ {[%clk 0:00:15.1]} 69... Rxf4 {[%clk 0:00:05.7]} 70. Qd7+ {[%clk
0:00:16.1]} 70... Kg6 {[%clk 0:00:06.6]} 71. Rd3 {[%clk 0:00:17.6]} 1-0

[Event "*** Titled Tuesday Blitz"]
[Site "Chess.com"]
[Date "2018.07.03"]
[Round "10"]
[White "maheswaran26"]
[Black "Kaphrep"]
[Result "0-1"]
[WhiteElo "2008"]
[BlackElo "2647"]
[TimeControl "180+2"]
[EndTime "15:15:52 PDT"]
[Termination "Kaphrep won by resignation"]

1. d4 {[%clk 0:02:58.3]} 1... g6 {[%clk 0:03:00.9]} 2. Nf3 {[%clk 0:02:58]} 2...
Bg7 {[%clk 0:03:02.1]} 3. c4 {[%clk 0:02:58.3]} 3... e6 {[%clk 0:03:01.3]} 4.
Nc3 {[%clk 0:02:58.4]} 4... Ne7 {[%clk 0:03:02]} 5. e4 {[%clk 0:02:56.8]} 5...
d5 {[%clk 0:03:03.1]} 6. cxd5 {[%clk 0:02:40.8]} 6... exd5 {[%clk 0:03:05]} 7.
e5 {[%clk 0:02:40.7]} 7... Nd7 {[%clk 0:03:05.8]} 8. Bg5 {[%clk 0:02:23]} 8...
Nf8 {[%clk 0:03:03.6]} 9. Bb5+ {[%clk 0:02:00.4]} 9... c6 {[%clk 0:03:02.2]} 10.
Bd3 {[%clk 0:02:00]} 10... Bg4 {[%clk 0:02:38.3]} 11. h3 {[%clk 0:01:58.6]}
11... Bxf3 {[%clk 0:02:38.1]} 12. Qxf3 {[%clk 0:01:58.2]} 12... Ne6 {[%clk
0:02:37.4]} 13. Be3 {[%clk 0:01:57.7]} 13... O-O {[%clk 0:02:31.6]} 14. O-O
{[%clk 0:01:55.1]} 14... c5 {[%clk 0:02:22.3]} 15. Ne2 {[%clk 0:01:37.2]} 15...
Nc6 {[%clk 0:02:15.7]} 16. Qg4 {[%clk 0:01:30.6]} 16... cxd4 {[%clk 0:02:14]}
17. Bxd4 {[%clk 0:01:23.6]} 17... Nexd4 {[%clk 0:02:10.8]} 18. Nxd4 {[%clk
0:01:23.3]} 18... Nxe5 {[%clk 0:02:12.1]} 19. Qd1 {[%clk 0:01:22.8]} 19... Qb6
{[%clk 0:02:08.4]} 20. Nb3 {[%clk 0:01:21.4]} 20... Rad8 {[%clk 0:02:05.1]} 21.
Rc1 {[%clk 0:01:19.4]} 21... Nc4 {[%clk 0:02:02.3]} 22. Rc2 {[%clk 0:00:47]}
22... Nxb2 {[%clk 0:01:59.8]} 23. Qd2 {[%clk 0:00:44.8]} 23... Nc4 {[%clk
0:01:51.8]} 24. Qc1 {[%clk 0:00:43.5]} 24... Ne5 {[%clk 0:01:49.4]} 25. Qd1
{[%clk 0:00:42.4]} 25... a5 {[%clk 0:01:46.7]} 26. Be2 {[%clk 0:00:38.3]} 26...
Nc6 {[%clk 0:01:45.6]} 27. Rc5 {[%clk 0:00:32.3]} 27... Nd4 {[%clk 0:01:33.7]}
28. Rc1 {[%clk 0:00:19.2]} 28... Ne6 {[%clk 0:01:26.6]} 29. Bf3 {[%clk
0:00:19.3]} 29... a4 {[%clk 0:01:26.5]} 30. Nd2 {[%clk 0:00:18.6]} 30... Bh6
{[%clk 0:01:17.7]} 31. Rc2 {[%clk 0:00:18]} 31... Nd4 {[%clk 0:01:18.1]} 32. Rc3
{[%clk 0:00:17.5]} 32... Qb2 {[%clk 0:00:46.4]} 33. Rd3 {[%clk 0:00:15.5]} 33...
Nxf3+ {[%clk 0:00:43.4]} 34. Nxf3 {[%clk 0:00:15.2]} 34... Qxa2 {[%clk
0:00:44.5]} 35. Qa1 {[%clk 0:00:12.4]} 35... Qxa1 {[%clk 0:00:43.3]} 36. Rxa1
{[%clk 0:00:13]} 36... b5 {[%clk 0:00:44.1]} 37. Nd4 {[%clk 0:00:13.5]} 37...
Bg7 {[%clk 0:00:44.7]} 38. Rb1 {[%clk 0:00:14.3]} 38... Bxd4 {[%clk 0:00:29.8]}
39. Rxd4 {[%clk 0:00:15]} 39... Rb8 {[%clk 0:00:23]} 40. Rxd5 {[%clk 0:00:15.5]}
40... b4 {[%clk 0:00:23.9]} 41. Ra5 {[%clk 0:00:12.5]} 41... a3 {[%clk 0:00:24]}
42. Ra4 {[%clk 0:00:13.1]} 42... Rfc8 {[%clk 0:00:21.9]} 43. Kh2 {[%clk
0:00:12.5]} 43... Rc2 {[%clk 0:00:10.5]} 44. Kg3 {[%clk 0:00:08.7]} 44... Rc3+
{[%clk 0:00:07.8]} 45. f3 {[%clk 0:00:08.9]} 45... Kg7 {[%clk 0:00:04.8]} 46.
Raxb4 {[%clk 0:00:07.9]} 46... Ra8 {[%clk 0:00:06]} 47. Ra1 {[%clk 0:00:08.2]}
47... Rc2 {[%clk 0:00:05.8]} 48. Rb3 {[%clk 0:00:07.3]} 48... a2 {[%clk
0:00:07]} 49. Rb6 {[%clk 0:00:06.7]} 49... g5 {[%clk 0:00:07.9]} 50. h4 {[%clk
0:00:06.6]} 50... gxh4+ {[%clk 0:00:07]} 51. Kh3 {[%clk 0:00:07.7]} 51... Ra4
{[%clk 0:00:06.9]} 52. Rd6 {[%clk 0:00:07.5]} 52... f6 {[%clk 0:00:07.1]} 53.
Rb6 {[%clk 0:00:07.7]} 53... Kg6 {[%clk 0:00:07.8]} 54. Rd6 {[%clk 0:00:07.9]}
54... Rb4 {[%clk 0:00:08.2]} 55. Ra6 {[%clk 0:00:07.2]} 55... Rbb2 {[%clk
0:00:06.6]} 56. Ra5 {[%clk 0:00:05.5]} 56... Rxg2 {[%clk 0:00:05.6]} 57. Kxh4
{[%clk 0:00:06.2]} 57... Rgc2 {[%clk 0:00:03.8]} 58. Kg3 {[%clk 0:00:06.6]}
58... h6 {[%clk 0:00:03.6]} 59. Rd5 {[%clk 0:00:06.1]} 59... Rd2 {[%clk
0:00:04.6]} 60. Ra5 {[%clk 0:00:05.4]} 60... Rbc2 {[%clk 0:00:05.8]} 61. Kf4
{[%clk 0:00:06]} 61... Rg2 {[%clk 0:00:05.2]} 62. Ke3 {[%clk 0:00:06.1]} 62...
h5 {[%clk 0:00:06.2]} 63. Kf4 {[%clk 0:00:05.3]} 63... h4 {[%clk 0:00:07.4]} 64.
Ke3 {[%clk 0:00:05.9]} 64... h3 {[%clk 0:00:08.5]} 65. Kf4 {[%clk 0:00:06.8]}
65... h2 {[%clk 0:00:09.7]} 66. Ke3 {[%clk 0:00:07.6]} 66... Rg1 {[%clk
0:00:09.6]} 0-1

[Event "*** Titled Tuesday Blitz"]
[Site "Chess.com"]
[Date "2018.07.03"]
[Round "10"]
[White "Fins0905"]
[Black "vovachesss"]
[Result "1-0"]
[WhiteElo "2605"]
[BlackElo "2443"]
[TimeControl "180+2"]
[EndTime "15:16:55 PDT"]
[Termination "Fins0905 won by resignation"]

1. d4 {[%clk 0:03:01.9]} 1... Nf6 {[%clk 0:02:58.4]} 2. c4 {[%clk 0:03:02.4]}
2... e6 {[%clk 0:02:59.3]} 3. Nf3 {[%clk 0:03:03.2]} 3... Bb4+ {[%clk
0:03:00.6]} 4. Bd2 {[%clk 0:03:03.4]} 4... Qe7 {[%clk 0:03:01.4]} 5. g3 {[%clk
0:03:03.7]} 5... O-O {[%clk 0:03:02.1]} 6. Bg2 {[%clk 0:03:02.8]} 6... Nc6
{[%clk 0:03:03]} 7. Nc3 {[%clk 0:03:03.3]} 7... d6 {[%clk 0:03:00.3]} 8. O-O
{[%clk 0:02:59.5]} 8... e5 {[%clk 0:03:00.8]} 9. Nd5 {[%clk 0:02:28.9]} 9...
Nxd5 {[%clk 0:02:51.2]} 10. cxd5 {[%clk 0:02:29.5]} 10... Bxd2 {[%clk
0:02:53.1]} 11. Qxd2 {[%clk 0:02:12.7]} 11... Nxd4 {[%clk 0:02:44.9]} 12. Nxd4
{[%clk 0:02:13.9]} 12... exd4 {[%clk 0:02:46.8]} 13. Rfe1 {[%clk 0:02:09.4]}
13... Qe5 {[%clk 0:02:34.1]} 14. Rac1 {[%clk 0:02:04]} 14... Bg4 {[%clk
0:01:52.6]} 15. Rxc7 {[%clk 0:01:56.6]} 15... Rfe8 {[%clk 0:01:52.6]} 16. Rc4
{[%clk 0:01:32.8]} 16... Bxe2 {[%clk 0:01:30.3]} 17. Rxd4 {[%clk 0:01:29.9]}
17... Qh5 {[%clk 0:01:31.3]} 18. Rh4 {[%clk 0:01:03.6]} 18... Qg6 {[%clk
0:00:52.3]} 19. Rxe2 {[%clk 0:01:03.4]} 19... Qb1+ {[%clk 0:00:52]} 20. Bf1
{[%clk 0:01:04.6]} 20... Qxa2 {[%clk 0:00:52.7]} 21. Rhe4 {[%clk 0:00:59.7]}
21... Rxe4 {[%clk 0:00:52.8]} 22. Rxe4 {[%clk 0:01:01.6]} 22... h6 {[%clk
0:00:48.5]} 23. Kg2 {[%clk 0:00:57.8]} 23... Rc8 {[%clk 0:00:46.9]} 24. Re7
{[%clk 0:00:52.9]} 24... Qb1 {[%clk 0:00:44.9]} 25. Bd3 {[%clk 0:00:44.7]} 25...
Qa2 {[%clk 0:00:43]} 26. Bf5 {[%clk 0:00:41]} 26... Rf8 {[%clk 0:00:38.3]} 27.
Rxb7 {[%clk 0:00:36]} 27... Qa6 {[%clk 0:00:36]} 28. Re7 {[%clk 0:00:35]} 28...
Qc4 {[%clk 0:00:33.8]} 29. Qd3 {[%clk 0:00:31.7]} 29... Qb4 {[%clk 0:00:32.3]}
30. Rxa7 {[%clk 0:00:21.4]} 30... Qxb2 {[%clk 0:00:32.8]} 31. Rc7 {[%clk
0:00:19.1]} 31... Qe5 {[%clk 0:00:32]} 32. Rc8 {[%clk 0:00:18.4]} 32... Rxc8
{[%clk 0:00:31.4]} 33. Bxc8 {[%clk 0:00:20.3]} 33... g6 {[%clk 0:00:32.8]} 34.
h4 {[%clk 0:00:19.8]} 34... h5 {[%clk 0:00:33.7]} 35. Ba6 {[%clk 0:00:19.6]}
35... Kg7 {[%clk 0:00:33.7]} 36. Bc4 {[%clk 0:00:19.8]} 36... Qf6 {[%clk
0:00:34.8]} 37. Qe3 {[%clk 0:00:19.6]} 37... Qb2 {[%clk 0:00:35.4]} 38. Be2
{[%clk 0:00:20.1]} 38... Qf6 {[%clk 0:00:34.2]} 39. Bf3 {[%clk 0:00:19.1]} 39...
Qb2 {[%clk 0:00:34.9]} 40. Qf4 {[%clk 0:00:19]} 40... Qa3 {[%clk 0:00:34]} 41.
Qd4+ {[%clk 0:00:19.2]} 41... Kg8 {[%clk 0:00:35]} 42. Be4 {[%clk 0:00:16.8]}
42... Qc1 {[%clk 0:00:33.1]} 43. Qf6 {[%clk 0:00:12.8]} 43... Qc4 {[%clk
0:00:32.7]} 44. Bf3 {[%clk 0:00:09.1]} 44... Qb4 {[%clk 0:00:31.8]} 45. Qf4
{[%clk 0:00:06.1]} 45... Qc5 {[%clk 0:00:31.7]} 46. Qe3 {[%clk 0:00:07.1]} 46...
Qb4 {[%clk 0:00:32.3]} 47. Qe4 {[%clk 0:00:07.6]} 47... Qc5 {[%clk 0:00:33.1]}
48. Qd3 {[%clk 0:00:06.9]} 48... Qb4 {[%clk 0:00:33.9]} 49. Be4 {[%clk
0:00:07.7]} 49... Qc5 {[%clk 0:00:34.7]} 50. Qc2 {[%clk 0:00:07.1]} 50... Qd4
{[%clk 0:00:35.2]} 51. Bf3 {[%clk 0:00:07.4]} 51... Kg7 {[%clk 0:00:35]} 52. Qd1
{[%clk 0:00:07.8]} 52... Qc5 {[%clk 0:00:34.2]} 53. Be2 {[%clk 0:00:07.5]} 53...
Qc3 {[%clk 0:00:32.6]} 54. Qd3 {[%clk 0:00:08.5]} 54... Qe5 {[%clk 0:00:33.1]}
55. f3 {[%clk 0:00:09.1]} 55... Qb2 {[%clk 0:00:33.5]} 56. g4 {[%clk 0:00:09.8]}
56... hxg4 {[%clk 0:00:33.5]} 57. fxg4 {[%clk 0:00:11.7]} 57... Qe5 {[%clk
0:00:33.7]} 58. Bf3 {[%clk 0:00:10.5]} 58... Qf4 {[%clk 0:00:33.5]} 59. Qe4
{[%clk 0:00:07.2]} 59... Qd2+ {[%clk 0:00:33.9]} 60. Kg3 {[%clk 0:00:08.6]}
60... Qc3 {[%clk 0:00:34.8]} 61. h5 {[%clk 0:00:09.2]} 61... gxh5 {[%clk
0:00:35.1]} 62. gxh5 {[%clk 0:00:11.1]} 62... Kf6 {[%clk 0:00:33.9]} 63. Qf4+
{[%clk 0:00:11.6]} 63... Ke7 {[%clk 0:00:34.5]} 64. h6 {[%clk 0:00:12.4]} 64...
Qe1+ {[%clk 0:00:34.2]} 65. Kg2 {[%clk 0:00:10.5]} 65... Qc3 {[%clk 0:00:23.8]}
66. Qe4+ {[%clk 0:00:06.4]} 66... Kf6 {[%clk 0:00:24.9]} 67. Qe8 {[%clk
0:00:04.4]} 67... Qd2+ {[%clk 0:00:24.6]} 68. Kg3 {[%clk 0:00:04.2]} 68... Qg5+
{[%clk 0:00:25.1]} 69. Kf2 {[%clk 0:00:05.2]} 69... Qd2+ {[%clk 0:00:25.4]} 70.
Kf1 {[%clk 0:00:05.8]} 70... Qxh6 {[%clk 0:00:25.8]} 71. Qe4 {[%clk 0:00:05.2]}
71... Qc1+ {[%clk 0:00:25.4]} 72. Kg2 {[%clk 0:00:06.4]} 72... Qd2+ {[%clk
0:00:26.2]} 73. Kg3 {[%clk 0:00:07.6]} 73... Qg5+ {[%clk 0:00:26.4]} 74. Qg4
{[%clk 0:00:08.8]} 74... Qf5 {[%clk 0:00:06.8]} 75. Qf4 {[%clk 0:00:06]} 75...
Qxf4+ {[%clk 0:00:02.8]} 76. Kxf4 {[%clk 0:00:07.9]} 76... Kg6 {[%clk
0:00:04.5]} 77. Be4+ {[%clk 0:00:08.5]} 77... Kf6 {[%clk 0:00:06.2]} 78. Bd3
{[%clk 0:00:09.5]} 78... Ke7 {[%clk 0:00:02.7]} 79. Kf5 {[%clk 0:00:10.8]} 79...
Ke8 {[%clk 0:00:03.7]} 80. Kf6 {[%clk 0:00:11.8]} 80... Kf8 {[%clk 0:00:04.7]}
81. Bh7 {[%clk 0:00:12]} 81... Ke8 {[%clk 0:00:05.3]} 82. Bg8 {[%clk 0:00:13.3]}
82... Kd7 {[%clk 0:00:06.5]} 83. Bxf7 {[%clk 0:00:14.6]} 83... Kc7 {[%clk
0:00:08.2]} 84. Ke7 {[%clk 0:00:15.5]} 84... Kb6 {[%clk 0:00:09.9]} 85. Kxd6
{[%clk 0:00:16.8]} 1-0